[Event "Titled Tuesday Blitz May 2 Late 2023"]
[White "Golubev, Mikhail"]
[Black "Fajdetic, Hrvoje"]
[WhiteFideId "14100983"]
[BlackFideId "14501945"]
[WhiteElo "2374"]
[BlackElo "2185"]
[Result "0-1"]
[Round "09"]
[TimeControl "180+2"]
[Date "2023.05.02"]
[WhiteClock "0:00:01"]
[BlackClock "0:00:14"]

1. Na3 {[%clk 0:03:00]}  d5 {[%clk 0:02:53]} 2. c3 {[%clk 0:03:01]}  Bf5 {[%clk 0:02:51]} 3. d3 {[%clk 0:02:59]}  c6 {[%clk 0:02:50]} 4. Nc2 {[%clk 0:02:59]}  h6 {[%clk 0:02:49]} 5. g3 {[%clk 0:02:57]}  Nf6 {[%clk 0:02:45]} 6. Bg2 {[%clk 0:02:57]}  g5 {[%clk 0:02:34]} 7. h4 {[%clk 0:02:51]}  g4 {[%clk 0:02:31]} 8. Bf4 {[%clk 0:02:48]}  h5 {[%clk 0:02:28]} 9. Qd2 {[%clk 0:02:21]}  Nbd7 {[%clk 0:02:25]} 10. O-O-O {[%clk 0:02:18]}  e5 {[%clk 0:02:25]} 11. Bg5 {[%clk 0:02:17]}  Qa5 {[%clk 0:02:14]} 12. Bxf6 {[%clk 0:02:16]}  Nxf6 {[%clk 0:02:15]} 13. Kb1 {[%clk 0:02:10]}  Bh6 {[%clk 0:02:13]} 14. Qe1 {[%clk 0:01:55]}  O-O-O {[%clk 0:02:05]} 15. e3 {[%clk 0:01:49]}  Nd7 {[%clk 0:02:00]} 16. Ne2 {[%clk 0:01:45]}  Nc5 {[%clk 0:01:47]} 17. Nc1 {[%clk 0:01:40]}  Bg6 {[%clk 0:01:34]} 18. Ka1 {[%clk 0:01:10]}  Qa6 {[%clk 0:01:32]} 19. Nb4 {[%clk 0:00:55]}  Qb5 {[%clk 0:01:27]} 20. d4 {[%clk 0:00:55]}  exd4 {[%clk 0:01:18]} 21. cxd4 {[%clk 0:00:55]}  Ne4 {[%clk 0:01:07]} 22. Bf1 {[%clk 0:00:47]}  Qa4 {[%clk 0:01:00]} 23. Nbd3 {[%clk 0:00:37]}  f6 {[%clk 0:00:40]} 24. Nb3 {[%clk 0:00:36]}  Bf8 {[%clk 0:00:35]} 25. Rc1 {[%clk 0:00:32]}  Bb4 {[%clk 0:00:34]} 26. Qe2 {[%clk 0:00:27]}  Kb8 {[%clk 0:00:33]} 27. Nxb4 {[%clk 0:00:22]}  Qxb4 {[%clk 0:00:32]} 28. Rh2 {[%clk 0:00:17]}  Nd6 {[%clk 0:00:27]} 29. Qe1 {[%clk 0:00:16]}  Qxe1 {[%clk 0:00:26]} 30. Rxe1 {[%clk 0:00:16]}  Ne4 {[%clk 0:00:26]} 31. Bd3 {[%clk 0:00:13]}  Rhe8 {[%clk 0:00:22]} 32. Bb1 {[%clk 0:00:12]}  Bf5 {[%clk 0:00:20]} 33. Nc1 {[%clk 0:00:12]}  b6 {[%clk 0:00:20]} 34. Nd3 {[%clk 0:00:12]}  Bg6 {[%clk 0:00:18]} 35. Nf4 {[%clk 0:00:12]}  Bf7 {[%clk 0:00:18]} 36. Bxe4 {[%clk 0:00:12]}  Rxe4 {[%clk 0:00:18]} 37. Rc1 {[%clk 0:00:11]}  Kb7 {[%clk 0:00:18]} 38. Rhh1 {[%clk 0:00:11]}  Rd7 {[%clk 0:00:18]} 39. Rc3 {[%clk 0:00:11]}  Rd6 {[%clk 0:00:18]} 40. Rhc1 {[%clk 0:00:11]}  Re7 {[%clk 0:00:18]} 41. b4 {[%clk 0:00:10]}  a6 {[%clk 0:00:18]} 42. a3 {[%clk 0:00:10]}  Rc7 {[%clk 0:00:18]} 43. Kb2 {[%clk 0:00:09]}  Rcd7 {[%clk 0:00:18]} 44. a4 {[%clk 0:00:10]}  Re7 {[%clk 0:00:17]} 45. a5 {[%clk 0:00:09]}  b5 {[%clk 0:00:17]} 46. Nd3 {[%clk 0:00:08]}  Be8 {[%clk 0:00:15]} 47. Nc5+ {[%clk 0:00:08]}  Ka7 {[%clk 0:00:15]} 48. f3 {[%clk 0:00:07]}  gxf3 {[%clk 0:00:14]} 49. Rf1 {[%clk 0:00:05]}  Rd8 {[%clk 0:00:13]} 50. Rxf3 {[%clk 0:00:05]}  Rf7 {[%clk 0:00:13]} 51. Rc2 {[%clk 0:00:03]}  f5 {[%clk 0:00:13]} 52. Rcf2 {[%clk 0:00:03]}  Bd7 {[%clk 0:00:13]} 53. Nxd7 {[%clk 0:00:02]}  Rdxd7 {[%clk 0:00:14]} 54. Rxf5 {[%clk 0:00:02]}  Rxf5 {[%clk 0:00:14]} 55. Rxf5 {[%clk 0:00:02]}  Re7 {[%clk 0:00:14]} 56. Re5 {[%clk 0:00:01]}  Rg7 {[%clk 0:00:14]} 0-1


[Site "https://www.chess.com"]

[Event "Titled Tuesday Blitz May 2 Late 2023"]
[White "Vargas, Mauricio"]
[Black "Sailer, Mike"]
[WhiteFideId "4404572"]
[BlackFideId "2012901"]
[WhiteElo "1998"]
[BlackElo "2109"]
[Result "0-1"]
[Round "09"]
[TimeControl "180+2"]
[Date "2023.05.02"]
[WhiteClock "0:00:27"]
[BlackClock "0:00:15"]

1. e4 {[%clk 0:02:59]}  d5 {[%clk 0:02:58]} 2. e5 {[%clk 0:02:58]}  c5 {[%clk 0:02:58]} 3. f4 {[%clk 0:02:55]}  Nc6 {[%clk 0:02:57]} 4. Nf3 {[%clk 0:02:56]}  Bg4 {[%clk 0:02:56]} 5. Bb5 {[%clk 0:02:56]}  e6 {[%clk 0:02:56]} 6. Bxc6+ {[%clk 0:02:57]}  bxc6 {[%clk 0:02:56]} 7. O-O {[%clk 0:02:58]}  Ne7 {[%clk 0:02:53]} 8. d3 {[%clk 0:02:58]}  Nf5 {[%clk 0:02:52]} 9. Nc3 {[%clk 0:02:52]}  Nd4 {[%clk 0:02:50]} 10. b3 {[%clk 0:02:37]}  Be7 {[%clk 0:02:28]} 11. Na4 {[%clk 0:02:34]}  O-O {[%clk 0:02:19]} 12. c3 {[%clk 0:02:28]}  Nxf3+ {[%clk 0:02:16]} 13. gxf3 {[%clk 0:02:27]}  Bf5 {[%clk 0:02:16]} 14. c4 {[%clk 0:02:24]}  f6 {[%clk 0:01:50]} 15. exf6 {[%clk 0:02:22]}  Bxf6 {[%clk 0:01:27]} 16. Rb1 {[%clk 0:02:15]}  dxc4 {[%clk 0:01:23]} 17. bxc4 {[%clk 0:02:13]}  Bxd3 {[%clk 0:01:17]} 18. Be3 {[%clk 0:01:52]}  Bxf1 {[%clk 0:01:11]} 19. Qxf1 {[%clk 0:01:51]}  Bd4 {[%clk 0:01:11]} 20. Qf2 {[%clk 0:01:43]}  Bxe3 {[%clk 0:01:10]} 21. Qxe3 {[%clk 0:01:43]}  Qd4 {[%clk 0:01:11]} 22. Kf2 {[%clk 0:01:40]}  Rxf4 {[%clk 0:01:11]} 23. Nxc5 {[%clk 0:01:35]}  Qxe3+ {[%clk 0:01:10]} 24. Kxe3 {[%clk 0:01:35]}  Rxc4 {[%clk 0:01:10]} 25. Nxe6 {[%clk 0:01:35]}  Re8 {[%clk 0:01:02]} 26. Kd3 {[%clk 0:01:34]}  Rh4 {[%clk 0:01:01]} 27. Ng5 {[%clk 0:01:24]}  Rxh2 {[%clk 0:00:58]} 28. a4 {[%clk 0:01:21]}  h6 {[%clk 0:00:55]} 29. Ne4 {[%clk 0:01:20]}  Ra2 {[%clk 0:00:54]} 30. Rb4 {[%clk 0:01:18]}  Ra3+ {[%clk 0:00:53]} 31. Ke2 {[%clk 0:01:14]}  h5 {[%clk 0:00:38]} 32. Rc4 {[%clk 0:01:09]}  h4 {[%clk 0:00:37]} 33. Kf2 {[%clk 0:01:04]}  Ra2+ {[%clk 0:00:30]} 34. Ke3 {[%clk 0:00:59]}  h3 {[%clk 0:00:30]} 35. Kf4 {[%clk 0:00:58]}  h2 {[%clk 0:00:27]} 36. Ng3 {[%clk 0:00:57]}  Re1 {[%clk 0:00:22]} 37. Rxc6 {[%clk 0:00:52]}  Rxa4+ {[%clk 0:00:22]} 38. Kg5 {[%clk 0:00:51]}  h1=Q {[%clk 0:00:20]} 39. Nf5 {[%clk 0:00:40]}  Rg1+ {[%clk 0:00:19]} 40. Ng3 {[%clk 0:00:30]}  Rxg3+ {[%clk 0:00:19]} 41. Kf5 {[%clk 0:00:30]}  Qh5+ {[%clk 0:00:18]} 42. Ke6 {[%clk 0:00:29]}  Qf7+ {[%clk 0:00:18]} 43. Kd6 {[%clk 0:00:29]}  Rg6+ {[%clk 0:00:18]} 44. Kc5 {[%clk 0:00:27]}  Qc4# {[%clk 0:00:15]} 0-1


[Site "https://www.chess.com"]

[Event "Titled Tuesday Blitz May 2 Late 2023"]
[White "Sanchez, Robert"]
[Black "Joubert, Dantelle"]
[WhiteFideId "2034360"]
[BlackFideId "14310813"]
[WhiteElo "1966"]
[BlackElo "1507"]
[Result "0-1"]
[Round "09"]
[TimeControl "180+2"]
[Date "2023.05.02"]
[WhiteClock "0:01:18"]
[BlackClock "0:00:11"]

1. e4 {[%clk 0:02:50]}  d5 {[%clk 0:02:57]} 2. exd5 {[%clk 0:02:50]}  Qxd5 {[%clk 0:02:56]} 3. Nc3 {[%clk 0:02:51]}  Qd6 {[%clk 0:02:54]} 4. Nf3 {[%clk 0:02:51]}  Nf6 {[%clk 0:02:46]} 5. Be2 {[%clk 0:02:51]}  c6 {[%clk 0:02:43]} 6. O-O {[%clk 0:02:51]}  Bg4 {[%clk 0:02:43]} 7. d4 {[%clk 0:02:50]}  e6 {[%clk 0:02:42]} 8. h3 {[%clk 0:02:50]}  Bh5 {[%clk 0:02:41]} 9. Ne5 {[%clk 0:02:50]}  Bxe2 {[%clk 0:02:37]} 10. Qxe2 {[%clk 0:02:50]}  Be7 {[%clk 0:02:33]} 11. Bf4 {[%clk 0:02:49]}  Qd8 {[%clk 0:02:30]} 12. Ne4 {[%clk 0:02:43]}  O-O {[%clk 0:02:28]} 13. Ng5 {[%clk 0:02:43]}  Nd5 {[%clk 0:02:25]} 14. Qh5 {[%clk 0:02:36]}  h6 {[%clk 0:02:15]} 15. Ngxf7 {[%clk 0:02:36]}  Qe8 {[%clk 0:01:47]} 16. Bxh6 {[%clk 0:02:22]}  Rxf7 {[%clk 0:01:39]} 17. Bxg7 {[%clk 0:02:20]}  Kxg7 {[%clk 0:01:29]} 18. Qg6+ {[%clk 0:02:19]}  Kf8 {[%clk 0:01:25]} 19. Qxe6 {[%clk 0:02:19]}  Rf6 {[%clk 0:01:18]} 20. Qg4 {[%clk 0:02:19]}  Bd6 {[%clk 0:00:46]} 21. c4 {[%clk 0:02:17]}  Nf4 {[%clk 0:00:42]} 22. Rfe1 {[%clk 0:02:11]}  Bxe5 {[%clk 0:00:34]} 23. Rxe5 {[%clk 0:02:09]}  Qd8 {[%clk 0:00:32]} 24. Rae1 {[%clk 0:02:03]}  Nd7 {[%clk 0:00:29]} 25. Rf5 {[%clk 0:01:55]}  Nd3 {[%clk 0:00:22]} 26. Re3 {[%clk 0:01:50]}  Nb4 {[%clk 0:00:19]} 27. Qg6 {[%clk 0:01:26]}  Rxf5 {[%clk 0:00:15]} 28. Qxf5+ {[%clk 0:01:26]}  Nf6 {[%clk 0:00:15]} 29. Qc5+ {[%clk 0:01:25]}  Kg7 {[%clk 0:00:12]} 30. Rg3+ {[%clk 0:01:24]}  Kh7 {[%clk 0:00:11]} 31. Qxb4 {[%clk 0:01:22]}  Qxd4 {[%clk 0:00:11]} 32. Qe7+ {[%clk 0:01:18]} 0-1


[Site "https://www.chess.com"]

[Event "Titled Tuesday Blitz May 2 Late 2023"]
[White "Ismayilova, Khanim"]
[Black "Figorito, Nick"]
[WhiteFideId "13429019"]
[BlackFideId "30923689"]
[WhiteElo "1633"]
[BlackElo "2036"]
[Result "0-1"]
[Round "09"]
[TimeControl "180+2"]
[Date "2023.05.02"]
[WhiteClock "0:00:06"]
[BlackClock "0:00:20"]

1. c4 {[%clk 0:03:00]}  Nf6 {[%clk 0:02:59]} 2. Nc3 {[%clk 0:03:01]}  d5 {[%clk 0:02:59]} 3. e3 {[%clk 0:03:00]}  g6 {[%clk 0:03:00]} 4. d4 {[%clk 0:02:58]}  Bg7 {[%clk 0:03:00]} 5. Nf3 {[%clk 0:02:58]}  O-O {[%clk 0:03:00]} 6. Bd3 {[%clk 0:02:55]}  c5 {[%clk 0:03:00]} 7. O-O {[%clk 0:02:53]}  cxd4 {[%clk 0:03:00]} 8. exd4 {[%clk 0:02:53]}  Nc6 {[%clk 0:02:58]} 9. h3 {[%clk 0:02:46]}  dxc4 {[%clk 0:02:50]} 10. Bxc4 {[%clk 0:02:46]}  Bf5 {[%clk 0:02:51]} 11. Be3 {[%clk 0:02:44]}  Rc8 {[%clk 0:02:50]} 12. Bd3 {[%clk 0:02:39]}  Bxd3 {[%clk 0:02:49]} 13. Qxd3 {[%clk 0:02:40]}  Nb4 {[%clk 0:02:49]} 14. Qd2 {[%clk 0:02:38]}  Nbd5 {[%clk 0:02:46]} 15. Nxd5 {[%clk 0:02:33]}  Qxd5 {[%clk 0:02:43]} 16. Bh6 {[%clk 0:02:31]}  Ne4 {[%clk 0:02:39]} 17. Qe3 {[%clk 0:02:22]}  Rfd8 {[%clk 0:02:20]} 18. Bxg7 {[%clk 0:02:20]}  Kxg7 {[%clk 0:02:21]} 19. Rfe1 {[%clk 0:02:15]}  f5 {[%clk 0:02:06]} 20. Rac1 {[%clk 0:02:07]}  Rxc1 {[%clk 0:02:01]} 21. Rxc1 {[%clk 0:02:08]}  Rd7 {[%clk 0:01:58]} 22. Qf4 {[%clk 0:01:41]}  Qxa2 {[%clk 0:01:27]} 23. Rc7 {[%clk 0:01:13]}  Qe6 {[%clk 0:00:53]} 24. Rxd7 {[%clk 0:00:59]}  Qxd7 {[%clk 0:00:54]} 25. Qe5+ {[%clk 0:00:59]}  Kf7 {[%clk 0:00:36]} 26. Qa5 {[%clk 0:00:38]}  b6 {[%clk 0:00:34]} 27. Ne5+ {[%clk 0:00:34]}  Kg7 {[%clk 0:00:31]} 28. Qxb6 {[%clk 0:00:27]}  Qa4 {[%clk 0:00:20]} 29. Qe6 {[%clk 0:00:20]}  Qe8 {[%clk 0:00:18]} 30. Nd7 {[%clk 0:00:15]}  Qf7 {[%clk 0:00:14]} 31. Qxf7+ {[%clk 0:00:12]}  Kxf7 {[%clk 0:00:14]} 32. Kf1 {[%clk 0:00:12]}  Nd2+ {[%clk 0:00:13]} 33. Ke2 {[%clk 0:00:12]}  Nc4 {[%clk 0:00:14]} 34. b3 {[%clk 0:00:11]}  Nd6 {[%clk 0:00:15]} 35. Nc5 {[%clk 0:00:11]}  Ke8 {[%clk 0:00:11]} 36. Ke3 {[%clk 0:00:10]}  Kd8 {[%clk 0:00:10]} 37. d5 {[%clk 0:00:09]}  Kc7 {[%clk 0:00:10]} 38. Kd4 {[%clk 0:00:09]}  Kb6 {[%clk 0:00:11]} 39. Nd7+ {[%clk 0:00:08]}  Kb5 {[%clk 0:00:11]} 40. Ne5 {[%clk 0:00:08]}  Kb4 {[%clk 0:00:12]} 41. Nd3+ {[%clk 0:00:07]}  Kxb3 {[%clk 0:00:12]} 42. Ne5 {[%clk 0:00:06]}  a5 {[%clk 0:00:12]} 43. Nc6 {[%clk 0:00:06]}  a4 {[%clk 0:00:12]} 44. Nxe7 {[%clk 0:00:07]}  a3 {[%clk 0:00:13]} 45. Ke5 {[%clk 0:00:07]}  Nc4+ {[%clk 0:00:13]} 46. Ke6 {[%clk 0:00:07]}  a2 {[%clk 0:00:14]} 47. d6 {[%clk 0:00:07]}  Nxd6 {[%clk 0:00:14]} 48. Kxd6 {[%clk 0:00:08]}  a1=Q {[%clk 0:00:15]} 49. Ke6 {[%clk 0:00:08]}  Qe1+ {[%clk 0:00:14]} 50. Kf7 {[%clk 0:00:08]}  Qxf2 {[%clk 0:00:15]} 51. Nxg6 {[%clk 0:00:04]}  hxg6 {[%clk 0:00:15]} 52. Kxg6 {[%clk 0:00:05]}  Qxg2+ {[%clk 0:00:15]} 53. Kf6 {[%clk 0:00:05]}  Qxh3 {[%clk 0:00:16]} 54. Kg6 {[%clk 0:00:05]}  Qg4+ {[%clk 0:00:16]} 55. Kf6 {[%clk 0:00:05]}  f4 {[%clk 0:00:17]} 56. Kf7 {[%clk 0:00:05]}  f3 {[%clk 0:00:18]} 57. Ke7 {[%clk 0:00:06]}  f2 {[%clk 0:00:19]} 58. Ke8 {[%clk 0:00:06]}  Qe4+ {[%clk 0:00:20]} 0-1


[Site "https://www.chess.com"]

[Event "Titled Tuesday Blitz May 2 Late 2023"]
[White "Deac, Bogdan-Daniel"]
[Black "Hakobyan, Aram"]
[WhiteFideId "1226380"]
[BlackFideId "13306677"]
[WhiteElo "2649"]
[BlackElo "2584"]
[Result "1/2-1/2"]
[Round "10"]
[TimeControl "180+2"]
[Date "2023.05.02"]
[WhiteClock "0:00:03"]
[BlackClock "0:00:12"]

1. d4 {[%clk 0:03:00]}  Nf6 {[%clk 0:03:00]} 2. c4 {[%clk 0:03:00]}  e6 {[%clk 0:03:00]} 3. Nf3 {[%clk 0:03:01]}  d5 {[%clk 0:03:00]} 4. g3 {[%clk 0:03:01]}  c5 {[%clk 0:02:59]} 5. Bg2 {[%clk 0:03:00]}  cxd4 {[%clk 0:02:58]} 6. cxd5 {[%clk 0:02:59]}  Qxd5 {[%clk 0:02:56]} 7. Qxd4 {[%clk 0:02:56]}  Nc6 {[%clk 0:02:56]} 8. Qxd5 {[%clk 0:02:56]}  Nxd5 {[%clk 0:02:57]} 9. O-O {[%clk 0:02:56]}  Be7 {[%clk 0:02:56]} 10. e4 {[%clk 0:02:56]}  Ndb4 {[%clk 0:02:54]} 11. Nc3 {[%clk 0:02:15]}  O-O {[%clk 0:02:51]} 12. Rd1 {[%clk 0:02:12]}  e5 {[%clk 0:02:23]} 13. h3 {[%clk 0:01:22]}  Nc2 {[%clk 0:02:16]} 14. Rb1 {[%clk 0:01:21]}  Be6 {[%clk 0:02:01]} 15. Nd5 {[%clk 0:01:16]}  Bc5 {[%clk 0:01:42]} 16. Bd2 {[%clk 0:00:31]}  N2d4 {[%clk 0:01:33]} 17. b4 {[%clk 0:00:21]}  Bd6 {[%clk 0:01:16]} 18. Be3 {[%clk 0:00:15]}  Nxf3+ {[%clk 0:00:55]} 19. Bxf3 {[%clk 0:00:15]}  Rfd8 {[%clk 0:00:56]} 20. b5 {[%clk 0:00:10]}  Ne7 {[%clk 0:00:51]} 21. Nxe7+ {[%clk 0:00:05]}  Bxe7 {[%clk 0:00:51]} 22. Rxd8+ {[%clk 0:00:02]}  Bxd8 {[%clk 0:00:50]} 23. a4 {[%clk 0:00:03]}  Bb6 {[%clk 0:00:47]} 24. g4 {[%clk 0:00:02]}  Bxe3 {[%clk 0:00:43]} 25. fxe3 {[%clk 0:00:03]}  b6 {[%clk 0:00:38]} 26. a5 {[%clk 0:00:04]}  Rc8 {[%clk 0:00:31]} 27. axb6 {[%clk 0:00:04]}  axb6 {[%clk 0:00:32]} 28. Ra1 {[%clk 0:00:04]}  Bd7 {[%clk 0:00:19]} 29. Ra6 {[%clk 0:00:03]}  Bxb5 {[%clk 0:00:18]} 30. Rxb6 {[%clk 0:00:03]}  Bd7 {[%clk 0:00:18]} 31. Rb7 {[%clk 0:00:02]}  Be6 {[%clk 0:00:18]} 32. Rb5 {[%clk 0:00:03]}  f6 {[%clk 0:00:18]} 33. Rb2 {[%clk 0:00:03]}  h6 {[%clk 0:00:18]} 34. Kf2 {[%clk 0:00:03]}  Kh7 {[%clk 0:00:17]} 35. Rd2 {[%clk 0:00:04]}  Kg6 {[%clk 0:00:17]} 36. h4 {[%clk 0:00:03]}  h5 {[%clk 0:00:17]} 37. gxh5+ {[%clk 0:00:03]}  Kh6 {[%clk 0:00:18]} 38. Rd6 {[%clk 0:00:04]}  Bf7 {[%clk 0:00:17]} 39. Rd7 {[%clk 0:00:04]}  Be6 {[%clk 0:00:17]} 40. Re7 {[%clk 0:00:04]}  Rc6 {[%clk 0:00:17]} 41. Ra7 {[%clk 0:00:04]}  Rd6 {[%clk 0:00:14]} 42. Kg3 {[%clk 0:00:03]}  Rd7 {[%clk 0:00:13]} 43. Ra8 {[%clk 0:00:03]}  Kh7 {[%clk 0:00:13]} 44. Ra6 {[%clk 0:00:03]}  Re7 {[%clk 0:00:12]} 45. Rb6 {[%clk 0:00:03]}  Bc8 {[%clk 0:00:12]} 46. Rb8 {[%clk 0:00:03]}  Be6 {[%clk 0:00:12]} 47. Rb6 {[%clk 0:00:03]}  Bc8 {[%clk 0:00:12]} 48. Rb8 {[%clk 0:00:03]}  Be6 {[%clk 0:00:13]} 49. Be2 {[%clk 0:00:03]}  Rc7 {[%clk 0:00:12]} 50. Rb6 {[%clk 0:00:03]}  Re7 {[%clk 0:00:12]} 51. Bf3 {[%clk 0:00:03]} 1/2-1/2


[Site "https://www.chess.com"]

[Event "Titled Tuesday Blitz May 2 Late 2023"]
[White "Sargsyan, Shant"]
[Black "Firouzja, Alireza"]
[WhiteFideId "13306766"]
[BlackFideId "12573981"]
[WhiteElo "2628"]
[BlackElo "2904"]
[Result "1/2-1/2"]
[Round "10"]
[TimeControl "180+2"]
[Date "2023.05.02"]
[WhiteClock "0:00:13"]
[BlackClock "0:00:06"]

1. Nf3 {[%clk 0:03:00]}  Nf6 {[%clk 0:02:56]} 2. c4 {[%clk 0:03:00]}  e6 {[%clk 0:02:55]} 3. Nc3 {[%clk 0:03:00]}  d5 {[%clk 0:02:55]} 4. d4 {[%clk 0:03:01]}  dxc4 {[%clk 0:02:55]} 5. e4 {[%clk 0:03:01]}  b5 {[%clk 0:02:55]} 6. Nxb5 {[%clk 0:03:00]}  Nxe4 {[%clk 0:02:51]} 7. Bxc4 {[%clk 0:03:01]}  Nd7 {[%clk 0:02:27]} 8. O-O {[%clk 0:03:00]}  a6 {[%clk 0:02:21]} 9. Nc3 {[%clk 0:02:59]}  Nxc3 {[%clk 0:02:21]} 10. bxc3 {[%clk 0:03:00]}  Be7 {[%clk 0:02:19]} 11. Bd3 {[%clk 0:02:53]}  Bb7 {[%clk 0:02:18]} 12. Rb1 {[%clk 0:02:53]}  Qc8 {[%clk 0:02:14]} 13. Re1 {[%clk 0:02:38]}  O-O {[%clk 0:02:11]} 14. c4 {[%clk 0:02:37]}  Re8 {[%clk 0:02:07]} 15. Ng5 {[%clk 0:02:30]}  Nf6 {[%clk 0:02:01]} 16. Qc2 {[%clk 0:02:25]}  g6 {[%clk 0:01:42]} 17. Bf4 {[%clk 0:02:21]}  c5 {[%clk 0:01:34]} 18. d5 {[%clk 0:02:11]}  exd5 {[%clk 0:01:30]} 19. Qb2 {[%clk 0:02:12]}  Nh5 {[%clk 0:00:27]} 20. Qxb7 {[%clk 0:01:15]}  Qxb7 {[%clk 0:00:26]} 21. Rxb7 {[%clk 0:01:16]}  Nxf4 {[%clk 0:00:26]} 22. Rbxe7 {[%clk 0:01:13]}  Rxe7 {[%clk 0:00:27]} 23. Rxe7 {[%clk 0:01:13]}  Nxd3 {[%clk 0:00:28]} 24. cxd5 {[%clk 0:01:13]}  Rd8 {[%clk 0:00:28]} 25. Nxf7 {[%clk 0:00:42]}  Rxd5 {[%clk 0:00:28]} 26. Rc7 {[%clk 0:00:36]}  Kf8 {[%clk 0:00:26]} 27. h4 {[%clk 0:00:35]}  Ke8 {[%clk 0:00:17]} 28. Ng5 {[%clk 0:00:28]}  h6 {[%clk 0:00:17]} 29. Ne6 {[%clk 0:00:24]}  Re5 {[%clk 0:00:16]} 30. Ng7+ {[%clk 0:00:15]}  Kd8 {[%clk 0:00:16]} 31. Rc6 {[%clk 0:00:16]}  Kd7 {[%clk 0:00:17]} 32. Rxa6 {[%clk 0:00:13]}  c4 {[%clk 0:00:17]} 33. Ra7+ {[%clk 0:00:13]}  Kc6 {[%clk 0:00:17]} 34. Ra6+ {[%clk 0:00:13]}  Kb5 {[%clk 0:00:14]} 35. Rd6 {[%clk 0:00:11]}  Kc5 {[%clk 0:00:12]} 36. Rd8 {[%clk 0:00:10]}  Re1+ {[%clk 0:00:09]} 37. Kh2 {[%clk 0:00:10]}  Nxf2 {[%clk 0:00:09]} 38. Rc8+ {[%clk 0:00:08]}  Kd4 {[%clk 0:00:09]} 39. Rd8+ {[%clk 0:00:09]}  Kc3 {[%clk 0:00:08]} 40. Kg3 {[%clk 0:00:09]}  Nd3 {[%clk 0:00:07]} 41. h5 {[%clk 0:00:06]}  gxh5 {[%clk 0:00:07]} 42. Nxh5 {[%clk 0:00:07]}  Kd2 {[%clk 0:00:06]} 43. Nf4 {[%clk 0:00:06]}  Re4 {[%clk 0:00:06]} 44. Nd5 {[%clk 0:00:05]}  Rd4 {[%clk 0:00:04]} 45. Rc8 {[%clk 0:00:02]}  Rxd5 {[%clk 0:00:04]} 46. Rxc4 {[%clk 0:00:02]}  Rg5+ {[%clk 0:00:04]} 47. Rg4 {[%clk 0:00:03]}  Ra5 {[%clk 0:00:03]} 48. Rh4 {[%clk 0:00:03]}  h5 {[%clk 0:00:03]} 49. Rd4 {[%clk 0:00:03]}  Ke3 {[%clk 0:00:03]} 50. Rd8 {[%clk 0:00:03]}  Rg5+ {[%clk 0:00:03]} 51. Kh4 {[%clk 0:00:04]}  Ra5 {[%clk 0:00:03]} 52. Re8+ {[%clk 0:00:03]}  Kf4 {[%clk 0:00:02]} 53. Rf8+ {[%clk 0:00:03]}  Ke4 {[%clk 0:00:03]} 54. g4 {[%clk 0:00:04]}  hxg4 {[%clk 0:00:03]} 55. Kxg4 {[%clk 0:00:05]}  Rxa2 {[%clk 0:00:03]} 56. Re8+ {[%clk 0:00:05]}  Ne5+ {[%clk 0:00:03]} 57. Kg3 {[%clk 0:00:06]}  Ra3+ {[%clk 0:00:04]} 58. Kg2 {[%clk 0:00:06]}  Kf4 {[%clk 0:00:04]} 59. Rf8+ {[%clk 0:00:07]}  Kg5 {[%clk 0:00:05]} 60. Rg8+ {[%clk 0:00:07]}  Ng6 {[%clk 0:00:05]} 61. Kf2 {[%clk 0:00:07]}  Kf5 {[%clk 0:00:06]} 62. Rb8 {[%clk 0:00:06]}  Ne5 {[%clk 0:00:06]} 63. Rf8+ {[%clk 0:00:06]}  Ke4 {[%clk 0:00:06]} 64. Re8 {[%clk 0:00:07]}  Rf3+ {[%clk 0:00:06]} 65. Kg2 {[%clk 0:00:07]}  Re3 {[%clk 0:00:07]} 66. Re7 {[%clk 0:00:07]}  Kf4 {[%clk 0:00:06]} 67. Re8 {[%clk 0:00:08]}  Re2+ {[%clk 0:00:06]} 68. Kf1 {[%clk 0:00:08]}  Ra2 {[%clk 0:00:07]} 69. Rf8+ {[%clk 0:00:09]}  Ke4 {[%clk 0:00:07]} 70. Re8 {[%clk 0:00:09]}  Kf4 {[%clk 0:00:06]} 71. Rf8+ {[%clk 0:00:09]}  Kg5 {[%clk 0:00:07]} 72. Rg8+ {[%clk 0:00:09]}  Ng6 {[%clk 0:00:07]} 73. Ke1 {[%clk 0:00:09]}  Kf5 {[%clk 0:00:07]} 74. Kd1 {[%clk 0:00:10]}  Nf4 {[%clk 0:00:08]} 75. Re8 {[%clk 0:00:09]}  Nd5 {[%clk 0:00:08]} 76. Rf8+ {[%clk 0:00:09]}  Ke4 {[%clk 0:00:08]} 77. Re8+ {[%clk 0:00:10]}  Kd3 {[%clk 0:00:08]} 78. Ke1 {[%clk 0:00:10]}  Nc3 {[%clk 0:00:07]} 79. Rd8+ {[%clk 0:00:10]}  Ke3 {[%clk 0:00:07]} 80. Re8+ {[%clk 0:00:10]}  Ne4 {[%clk 0:00:08]} 81. Kf1 {[%clk 0:00:10]}  Kf3 {[%clk 0:00:07]} 82. Rf8+ {[%clk 0:00:10]}  Ke3 {[%clk 0:00:08]} 83. Re8 {[%clk 0:00:10]}  Rb2 {[%clk 0:00:08]} 84. Kg1 {[%clk 0:00:10]}  Kf4 {[%clk 0:00:05]} 85. Rf8+ {[%clk 0:00:10]}  Kg4 {[%clk 0:00:06]} 86. Rg8+ {[%clk 0:00:10]}  Ng5 {[%clk 0:00:06]} 87. Kf1 {[%clk 0:00:11]}  Kf3 {[%clk 0:00:05]} 88. Rf8+ {[%clk 0:00:11]}  Ke3 {[%clk 0:00:05]} 89. Re8+ {[%clk 0:00:11]}  Ne4 {[%clk 0:00:06]} 90. Kg1 {[%clk 0:00:12]}  Kf3 {[%clk 0:00:04]} 91. Rf8+ {[%clk 0:00:12]}  Kg3 {[%clk 0:00:05]} 92. Rg8+ {[%clk 0:00:12]}  Kf3 {[%clk 0:00:05]} 93. Rf8+ {[%clk 0:00:13]}  Kg4 {[%clk 0:00:06]} 94. Rg8+ {[%clk 0:00:13]}  Kf3 {[%clk 0:00:06]} 95. Rf8+ {[%clk 0:00:13]} 1/2-1/2


[Site "https://www.chess.com"]